fUSD/lending_fUSD_20250519
["ID","MTS","AMOUNT","RATE_DAILY","PERIOD"]
[361604189,1747633851677,-400.0,0.00013808,2]
[361604191,1747633851686,-1078.45,0.00013808,2]
[361604193,1747633851696,-536.9903086,0.00013808,2]
[361604195,1747633851706,-400.0,0.00013808,2]
[361604197,1747633851716,-400.0,0.00013808,2]
[361604199,1747633851726,-423.45,0.00013808,2]
[361604201,1747633851735,-400.0,0.00013808,2]
[361604203,1747633851744,-499.8,0.00013808,2]
[361604205,1747633851753,-668.21,0.00013808,2]
[361604207,1747633851762,-400.0,0.00013808,2]
[361604209,1747633851771,-546.59,0.00013808,2]
[361604211,1747633851782,-400.0,0.00013808,2]
[361604213,1747633851794,-400.0,0.00013808,2]
[361604215,1747633851804,-400.0,0.00013808,2]
[361604217,1747633851813,-664.7,0.00013808,2]
[361604219,1747633851823,-400.0,0.00013808,2]
[361604221,1747633851832,-400.0,0.00013808,2]
[361604223,1747633851841,-466.36,0.00013808,2]
[361604225,1747633851850,-634.66,0.00013808,2]
[361604227,1747633851860,-553.47,0.00013808,2]
[361604229,1747633851871,-967.9,0.00013808,2]
[361604231,1747633851880,-612.42,0.00013808,2]
[361604245,1747633851999,-406.72674275,0.00013808,2]
[361604247,1747633852011,-400.0,0.00013808,2]
[361604249,1747633852020,-400.0,0.00013808,2]
[361604251,1747633852029,-406.36,0.00013808,2]
[361604253,1747633852038,-400.0,0.00013808,2]
[361604255,1747633852047,-400.0,0.00013808,2]
[361604258,1747633852057,-400.0,0.00013808,2]
[361604260,1747633852066,-400.0,0.00013808,2]
[361604261,1747633852075,-400.0,0.00013808,2]
[361604264,1747633852085,-400.0,0.00013808,2]
[361604266,1747633852095,-400.0,0.00013808,2]
[361604268,1747633852105,-698.53,0.00013808,2]
[361604270,1747633852114,-400.0,0.00013808,2]
[361604272,1747633852123,-400.93,0.00013808,2]
[361604274,1747633852132,-523.9,0.00013808,2]
[361604276,1747633852142,-1114.07,0.00013808,2]
[361604278,1747633852152,-410.03,0.00013808,2]
[361604280,1747633852161,-400.0,0.00013808,2]
[361604282,1747633852170,-400.0,0.00013808,2]
[361604284,1747633852179,-400.0,0.00013808,2]
[361604286,1747633852189,-796.49,0.00013808,2]
[361604288,1747633852198,-409.0,0.00013808,2]
[361604290,1747633852207,-466.79,0.00013808,2]
[361604292,1747633852216,-463.33503569,0.00013808,2]
[361604294,1747633852225,-529.78,0.00013808,2]
[361604296,1747633852235,-501.83,0.00013808,2]
[361604298,1747633852244,-404.91,0.00013808,2]
[361604300,1747633852253,-400.0,0.00013808,2]
[361604302,1747633852262,-400.0,0.00013808,2]
[361604304,1747633852271,-400.0,0.00013808,2]
[361604306,1747633852281,-406.15,0.00013808,2]
[361604308,1747633852290,-932.61,0.00013808,2]
[361604310,1747633852299,-444.21,0.00013808,2]
[361604312,1747633852308,-400.87,0.00013808,2]
[361604314,1747633852317,-400.0,0.00013808,2]
[361604316,1747633852326,-400.0,0.00013808,2]
[361604318,1747633852335,-400.0,0.00013808,2]
[361604320,1747633852345,-569.16,0.00013808,2]
[361604322,1747633852354,-400.0,0.00013808,2]
[361604324,1747633852363,-400.0,0.00013808,2]
[361604326,1747633852373,-400.0,0.00013808,2]
[361604328,1747633852382,-639.01,0.00013808,2]
[361604330,1747633852391,-400.0,0.00013808,2]
[361604332,1747633852400,-684.65,0.00013808,2]
[361604334,1747633852410,-400.0,0.00013808,2]
[361604336,1747633852419,-423.19,0.00013808,2]
[361604338,1747633852428,-876.97,0.00013808,2]
[361604340,1747633852437,-591.42,0.00013808,2]
[361604342,1747633852447,-461.81,0.00013808,2]
[361604344,1747633852456,-712.51,0.00013808,2]
[361604345,1747633852465,-591.17,0.00013808,2]
[361604346,1747633852475,-400.0,0.00013808,2]
[361604347,1747633852484,-1191.69,0.00013808,2]
[361604348,1747633852493,-433.49,0.00013808,2]
[361604349,1747633852503,-400.0,0.00013808,2]
[361604350,1747633852512,-567.12,0.00013808,2]
[361604351,1747633852521,-400.0,0.00013808,2]
[361604352,1747633852530,-400.0,0.00013808,2]
[361604353,1747633852539,-400.0,0.00013808,2]
[361604354,1747633852548,-886.28,0.00013808,2]
[361604356,1747633852558,-653.13,0.00013808,2]
[361604358,1747633852567,-405.32,0.00013808,2]
[361604360,1747633852576,-400.0,0.00013808,2]
[361604362,1747633852586,-400.0,0.00013808,2]
[361604364,1747633852595,-400.0,0.00013808,2]
[361604366,1747633852604,-151.0,0.00013808,2]
[361604368,1747633852613,-1062.42,0.00013808,2]
[361604370,1747633852623,-490.17,0.00013808,2]
[361604372,1747633852633,-611.99,0.00013808,2]
[361604374,1747633852642,-793.95,0.00013808,2]
[361604376,1747633852651,-151.0,0.00013808,2]
[361604378,1747633852661,-151.0,0.00013808,2]
[361604380,1747633852670,-486.16758364,0.00013808,2]
[361604382,1747633852680,-650.02,0.00013808,2]
[361604384,1747633852689,-1070.14,0.00013808,2]
[361604386,1747633852699,-400.0,0.00013808,2]
[361604388,1747633852708,-400.0,0.00013808,2]
[361604390,1747633852718,-400.0,0.00013808,2]
[361604392,1747633852727,-1176.38,0.00013808,2]
[361604394,1747633852737,-463.09,0.00013808,2]
[361604397,1747633852746,-400.0,0.00013808,2]
[361604399,1747633852756,-1878.9,0.00013808,2]
[361604400,1747633852766,-489.14,0.00013808,2]
[361604403,1747633852775,-159.585822,0.00013808,2]
[361604405,1747633852788,-159.585822,0.00013808,2]
[361604407,1747633852798,-151.0,0.00013808,2]
[361604409,1747633852807,-500.47,0.00013808,2]
[361604411,1747633852816,-400.0,0.00013808,2]
[361604412,1747633852827,-277.745481,0.00013808,2]
[361604415,1747633852836,-159.585822,0.00013808,2]
[361604417,1747633852846,-159.585822,0.00013808,2]
[361604419,1747633852855,-400.0,0.00013808,2]
[361604421,1747633852867,-400.0,0.00013808,2]
[361604422,1747633852876,-400.0,0.00013808,2]
[361604425,1747633852887,-418.82,0.00013808,2]
[361604427,1747633852897,-519.76539325,0.00013808,2]
[361604429,1747633852907,-923.37,0.00013808,2]
[361604431,1747633852915,-1295.26,0.00013808,2]
[361604433,1747633852925,-400.0,0.00013808,2]
[361604435,1747633852934,-400.0,0.00013808,2]
[361604437,1747633852943,-400.0,0.00013808,2]
[361604439,1747633852953,-632.27,0.00013808,2]
[361604441,1747633852961,-803.47,0.00013808,2]
[361604443,1747633852970,-400.0,0.00013808,2]
[361604444,1747633852979,-1018.57,0.00013808,2]
[361604446,1747633852988,-400.0,0.00013808,2]
[361604448,1747633852998,-400.0,0.00013808,2]
[361604451,1747633853007,-400.0,0.00013808,2]
[361604453,1747633853016,-643.37,0.00013808,2]
[361604455,1747633853025,-400.0,0.00013808,2]
[361604457,1747633853035,-400.0,0.00013808,2]
[361604458,1747633853045,-672.25,0.00013808,2]
[361604460,1747633853054,-453.88,0.00013808,2]
[361604462,1747633853063,-400.0,0.00013808,2]
[361604464,1747633853073,-449.83,0.00013808,2]
[361604466,1747633853082,-151.0,0.00013808,2]
[361604468,1747633853092,-400.0,0.00013808,2]
[361604471,1747633853101,-593.71,0.00013808,2]
[361604472,1747633853110,-400.0,0.00013808,2]
[361604473,1747633853119,-400.0,0.00013808,2]
[361604474,1747633853129,-404.3,0.00013808,2]
[361604475,1747633853138,-400.0,0.00013808,2]
[361604476,1747633853148,-457.19531557,0.00013808,2]
[361604477,1747633853158,-400.0,0.00013808,2]
[361604478,1747633853167,-400.0,0.00013808,2]
[361604479,1747633853177,-400.0,0.00013808,2]
[361604480,1747633853186,-536.79,0.00013808,2]
[361604481,1747633853195,-471.51,0.00013808,2]
[361604482,1747633853205,-400.0,0.00013808,2]
[361604483,1747633853214,-296.024992,0.00013808,2]
[361604484,1747633853224,-968.48,0.00013808,2]
[361604485,1747633853233,-430.56,0.00013808,2]
[361604486,1747633853242,-400.0,0.00013808,2]
[361604487,1747633853252,-400.0,0.00013808,2]
[361604488,1747633853262,-400.0,0.00013808,2]
[361604489,1747633853271,-400.0,0.00013808,2]
[361604490,1747633853281,-400.0,0.00013808,2]
[361604491,1747633853290,-549.41,0.00013808,2]
[361604492,1747633853299,-400.0,0.00013808,2]
[361604493,1747633853308,-504.23,0.00013808,2]
[361604494,1747633853318,-676.95,0.00013808,2]
[361604495,1747633853327,-400.0,0.00013808,2]
[361604496,1747633853337,-400.0,0.00013808,2]
[361604497,1747633853346,-400.0,0.00013808,2]
[361604498,1747633853355,-400.0,0.00013808,2]
[361604499,1747633853365,-783.95,0.00013808,2]
[361604500,1747633853374,-400.0,0.00013808,2]
[361604501,1747633853384,-400.0,0.00013808,2]
[361604502,1747633853394,-438.55,0.00013808,2]
[361604503,1747633853403,-808.28,0.00013808,2]
[361604504,1747633853413,-400.0,0.00013808,2]
[361604505,1747633853422,-403.44,0.00013808,2]
[361604506,1747633853432,-508.96845961,0.00013808,2]
[361604507,1747633853441,-400.0,0.00013808,2]
[361604508,1747633853450,-572.32,0.00013808,2]
[361604509,1747633853460,-404.71,0.00013808,2]
[361604510,1747633853470,-1029.29,0.00013808,2]
[361604511,1747633853479,-769.6,0.00013808,2]
[361604512,1747633853489,-473.22,0.00013808,2]
[361604513,1747633853500,-400.0,0.00013808,2]
[361604514,1747633853510,-400.0,0.00013808,2]
[361604515,1747633853520,-780.99,0.00013808,2]
[361604516,1747633853529,-400.0,0.00013808,2]
[361604517,1747633853538,-1452.7,0.00013808,2]
[361604518,1747633853548,-400.0,0.00013808,2]
[361604519,1747633853558,-400.0,0.00013808,2]
[361604520,1747633853567,-1104.24,0.00013808,2]
[361604521,1747633853576,-400.0,0.00013808,2]
[361604522,1747633853585,-400.0,0.00013808,2]
[361604523,1747633853595,-469.86,0.00013808,2]
[361604524,1747633853604,-400.0,0.00013808,2]
[361604525,1747633853613,-400.0,0.00013808,2]
[361604526,1747633853622,-400.0,0.00013808,2]
[361604527,1747633853633,-400.0,0.00013808,2]
[361604528,1747633853642,-400.0,0.00013808,2]
[361604529,1747633853652,-400.0,0.00013808,2]
[361604530,1747633853661,-603.93,0.00013808,2]
[361604531,1747633853671,-708.8,0.00013808,2]
[361604532,1747633853681,-415.26,0.00013808,2]
[361604533,1747633853691,-400.0,0.00013808,2]
[361604534,1747633853701,-423.05,0.00013808,2]
[361604535,1747633853710,-691.82,0.00013808,2]
[361604536,1747633853720,-931.247757,0.00013808,2]
[361604538,1747633853729,-931.247757,0.00013808,2]
[361604539,1747633853738,-470.39,0.00013808,2]
[361604541,1747633853748,-400.0,0.00013808,2]
[361604543,1747633853758,-512.5876641,0.00013808,2]
[361604544,1747633853768,-235.47253964,0.00013808,2]
[361604548,1747633854685,-164.52746036,0.00013808,2]
[361604549,1747633854696,-400.0,0.00013808,2]
[361604550,1747633854705,-421.288237,0.00013808,2]
[361604551,1747633854715,-421.288237,0.00013808,2]
[361604552,1747633854724,-455.42,0.00013808,2]
[361604553,1747633854734,-137.47606564,0.00013808,2]
[361604554,1747633854766,-400.0,0.00013698,2]
[361604555,1747633854775,-800.93393436,0.00013808,2]
[361604556,1747633854787,-421.288237,0.00013808,2]
[361604557,1747633854798,-421.288237,0.00013808,2]
[361604558,1747633854807,-400.0,0.00013808,2]
[361604559,1747633854817,-193.948403,0.00013808,2]
[361604560,1747633854827,-193.948403,0.00013808,2]
[361604561,1747633854837,-400.0,0.00013808,2]
[361604562,1747633854847,-470.51,0.00013808,2]
[361604563,1747633854856,-810.96971765,0.00013808,2]
[361604564,1747633854871,-1994.16028235,0.00013808,2]
[361604565,1747633854881,-400.0,0.00013808,2]
[361604566,1747633854891,-400.0,0.00013808,2]
[361604567,1747633854900,-400.0,0.00013808,2]
[361604568,1747633854909,-151.0,0.00013808,2]
[361604569,1747633854919,-151.0,0.00013808,2]
[361604570,1747633854928,-193.948403,0.00013808,2]
[361604571,1747633854938,-193.948403,0.00013808,2]
[361604572,1747633854948,-400.0,0.00013808,2]
[361604573,1747633854958,-857.83,0.00013808,2]
[361604574,1747633854968,-487.29,0.00013808,2]
[361604575,1747633854978,-151.0,0.00013808,2]
[361604576,1747633854987,-400.0,0.00013808,2]
[361604577,1747633854997,-151.0,0.00013808,2]
[361604578,1747633855007,-400.0,0.00013808,2]
[361604579,1747633855016,-400.0,0.00013808,2]
[361604580,1747633855026,-151.0,0.00013808,2]
[361604581,1747633855036,-400.0,0.00013808,2]
[361604582,1747633855046,-151.0,0.00013808,2]
[361604583,1747633855055,-400.0,0.00013808,2]
[361604584,1747633855065,-28.75853704,0.00013808,2]
[361604585,1747633855104,-973.60146296,0.00013808,2]
[361604586,1747633855113,-400.0,0.00013808,2]
[361604587,1747633855123,-60.95522327,0.00013808,2]
[361604588,1747633855135,-2208.95477673,0.00013808,2]
[361604589,1747633855144,-400.0,0.00013808,2]
[361604590,1747633855154,-2458.95,0.00013808,2]
[361604591,1747633855163,-775.25,0.00013808,2]
[361604592,1747633855173,-487.24,0.00013808,2]
[361604593,1747633855182,-620.85,0.00013808,2]
[361604594,1747633855192,-400.0,0.00013808,2]
[361604595,1747633855201,-1377.29,0.00013808,2]
[361604596,1747633855211,-400.0,0.00013808,2]
[361604597,1747633855221,-151.552964,0.00013808,2]
[361604598,1747633855230,-153.651783,0.00013808,2]
[361604599,1747633855240,-570.92,0.00013808,2]
[361604600,1747633855249,-647.34,0.00013808,2]
[361604601,1747633855259,-1305.41,0.00013808,2]
[361604602,1747633855269,-400.0,0.00013808,2]
[361604603,1747633855278,-1877.63,0.00013808,2]
[361604604,1747633855287,-400.0,0.00013808,2]
[361604605,1747633855297,-1382.03,0.00013808,2]
[361604606,1747633855306,-399.3088813,0.00013808,2]
[361604607,1747633855316,-400.0,0.00013808,2]
[361604608,1747633855325,-567.8,0.00013808,2]
[361604609,1747633855334,-400.0,0.00013808,2]
[361604610,1747633855344,-1377.39,0.00013808,2]
[361604611,1747633855355,-400.0,0.00013808,2]
[361604612,1747633855364,-153.966632,0.00013808,2]
[361604613,1747633855373,-400.0,0.00013808,2]
[361604614,1747633855385,-835.54,0.00013808,2]
[361604615,1747633855394,-519.5,0.00013808,2]
[361604616,1747633855404,-294.39,0.00013808,2]
[361604617,1747633855414,-2358.39,0.00013808,2]
[361604618,1747633855423,-400.0,0.00013808,2]
[361604619,1747633855432,-2295.19,0.00013808,2]
[361604620,1747633855442,-679.15,0.00013808,2]
[361604621,1747633855452,-1054.86,0.00013808,2]
[361604622,1747633855462,-623.55,0.00013808,2]
[361604623,1747633855471,-250.0,0.00013808,2]
[361604624,1747633855480,-400.0,0.00013808,2]
[361604625,1747633855490,-400.0,0.00013808,2]
[361604626,1747633855500,-400.0,0.00013808,2]
[361604627,1747633855510,-1875.23,0.00013808,2]
[361604628,1747633855520,-151.0,0.00013808,2]
[361604629,1747633855531,-151.0,0.00013808,2]
[361604630,1747633855540,-669.47,0.00013808,2]
[361604631,1747633855550,-826.94,0.00013808,2]
[361604632,1747633855560,-400.0,0.00013808,2]
[361604633,1747633855570,-1411.18,0.00013808,2]
[361604634,1747633855580,-400.0,0.00013808,2]
[361604635,1747633855592,-34.91628649,0.00013808,2]
[361604636,1747633855628,-365.08371351,0.00013808,2]
[361604637,1747633855638,-400.0,0.00013808,2]
[361604638,1747633855648,-467.06,0.00013808,2]
[361604639,1747633855657,-400.0,0.00013808,2]
[361604640,1747633855667,-1112.48,0.00013808,2]
[361604641,1747633855677,-400.0,0.00013808,2]
[361604642,1747633855686,-400.0,0.00013808,2]
[361604643,1747633855695,-400.0,0.00013808,2]
[361604644,1747633855705,-843.47,0.00013808,2]
[361604645,1747633855714,-1055.44,0.00013808,2]
[361604646,1747633855723,-1193.94,0.00013808,2]
[361604647,1747633855733,-400.0,0.00013808,2]
[361604648,1747633855742,-9986.47,0.00013808,2]
[361604649,1747633855752,-527.03,0.00013808,2]
[361604650,1747633855761,-617.41,0.00013808,2]
[361604651,1747633855771,-455.19,0.00013808,2]
[361604652,1747633855782,-400.0,0.00013808,2]
[361604653,1747633855794,-766.47,0.00013808,2]
[361604654,1747633855803,-609.72,0.00013808,2]
[361604655,1747633855813,-958.09,0.00013808,2]
[361604656,1747633855823,-762.87,0.00013808,2]
[361604657,1747633855832,-2494.05,0.00013808,2]
[361604658,1747633855842,-482.16,0.00013808,2]
[361604659,1747633855853,-1133.81,0.00013808,2]
[361604660,1747633855864,-3286.37990597,0.00013808,2]
[361604661,1747633855878,-3514.46009403,0.00013808,2]
[361604662,1747633855887,-1992.24,0.00013808,2]
[361604663,1747633855897,-400.0,0.00013808,2]
[361604664,1747633855907,-2661.098731,0.00013808,2]
[361604665,1747633855917,-400.0,0.00013808,2]
[361604666,1747633855926,-400.0,0.00013808,2]
[361604667,1747633855936,-2661.098731,0.00013808,2]
[361604668,1747633855945,-2661.098731,0.00013808,2]
[361604669,1747633855956,-7266.1,0.00013808,2]
[361604670,1747633855966,-400.0,0.00013808,2]
[361604671,1747633855975,-2661.098731,0.00013808,2]
[361604672,1747633855985,-400.0,0.00013808,2]
[361604673,1747633855995,-628.74,0.00013808,2]
[361604674,1747633856005,-400.0,0.00013808,2]
[361604675,1747633856016,-988.08,0.00013808,2]
[361604676,1747633856026,-1456.2,0.00013808,2]
[361604677,1747633856037,-400.0,0.00013808,2]
[361604678,1747633856047,-1498.31,0.00013808,2]
[361604679,1747633856056,-400.0,0.00013808,2]
[361604680,1747633856066,-348.26393541,0.00013808,2]
[361604681,1747633856075,-1861.09,0.00013808,2]
[361604682,1747633856085,-1435.43,0.00013808,2]
[361604683,1747633856094,-2398.14,0.00013808,2]
[361604684,1747633856104,-4242.46,0.00013808,2]
[361604685,1747633856113,-823.01,0.00013808,2]
[361604686,1747633856123,-1180.95,0.00013808,2]
[361604687,1747633856134,-400.0,0.00013808,2]
[361604688,1747633856144,-176.32348,0.00013808,2]
[361604689,1747633856154,-564.11,0.00013808,2]
[361604690,1747633856163,-8727.07,0.00013808,2]
[361604691,1747633856173,-3716.87,0.00013808,2]
[361604692,1747633856183,-151.0,0.00013808,2]
[361604693,1747633856192,-151.0,0.00013808,2]
[361604694,1747633856202,-1177.86,0.00013808,2]
[361604695,1747633856211,-1264.1,0.00013808,2]
[361604696,1747633856221,-626.97,0.00013808,2]
[361604697,1747633856231,-400.0,0.00013808,2]
[361604698,1747633856240,-151.0,0.00013808,2]
[361604699,1747633856250,-151.0,0.00013808,2]
[361604700,1747633856260,-400.0,0.00013808,2]
[361604701,1747633856270,-788.81,0.00013808,2]
[361604702,1747633856279,-400.0,0.00013808,2]
[361604703,1747633856290,-169.325498,0.00013808,2]
[361604704,1747633856300,-169.325498,0.00013808,2]
[361604705,1747633856310,-2699.53,0.00013808,2]
[361604706,1747633856320,-400.0,0.00013808,2]
[361604707,1747633856329,-400.0,0.00013808,2]
[361604708,1747633856339,-169.325498,0.00013808,2]
[361604709,1747633856348,-169.325498,0.00013808,2]
[361604710,1747633856358,-400.0,0.00013808,2]
[361604711,1747633856367,-1496.26,0.00013808,2]
[361604712,1747633856377,-400.0,0.00013808,2]
[361604713,1747633856388,-400.0,0.00013808,2]
[361604714,1747633856397,-400.0,0.00013808,2]
[361604715,1747633856407,-7131.7,0.00013808,2]
[361604716,1747633856417,-400.0,0.00013808,2]
[361604717,1747633856427,-600.13,0.00013808,2]
[361604718,1747633856436,-481.09,0.00013808,2]
[361604719,1747633856446,-1165.48,0.00013808,2]
[361604720,1747633856456,-505.21,0.00013808,2]
[361604721,1747633856466,-584.99,0.00013808,2]
[361604722,1747633856475,-1231.05,0.00013808,2]
[361604723,1747633856486,-400.0,0.00013808,2]
[361604724,1747633856497,-993.96,0.00013808,2]
[361604725,1747633856508,-500.52,0.00013808,2]
[361604726,1747633856518,-151.0,0.00013808,2]
[361604727,1747633856528,-151.0,0.00013808,2]
[361604728,1747633856538,-400.0,0.00013808,2]
[361604729,1747633856547,-1500.47,0.00013808,2]
[361604730,1747633856557,-1329.51,0.00013808,2]
[361604731,1747633856567,-400.0,0.00013808,2]
[361604732,1747633856576,-1986.59,0.00013808,2]
[361604733,1747633856586,-663.76703402,0.00013808,2]
[361604734,1747633857394,-99.70526397,0.00013808,2]
[361604735,1747633857405,-276.26770201,0.00013808,2]
[361604736,1747633857415,-400.0,0.00013808,2]
[361604737,1747633857423,-400.0,0.00013808,2]
[361604738,1747633857432,-417.00438842,0.00013808,2]
[361604739,1747633857443,-1481.22561158,0.00013808,2]
[361604740,1747633857456,-1244.31,0.00013808,2]
[361604741,1747633857465,-400.0,0.00013808,2]
[361604742,1747633857474,-4112.34,0.00013808,2]
[361604743,1747633857483,-400.0,0.00013808,2]
[361604744,1747633857492,-2506.15,0.00013808,2]
[361604745,1747633857501,-400.0,0.00013808,2]
[361604746,1747633857510,-1031.52,0.00013808,2]
[361604747,1747633857518,-352.84353915,0.00013808,2]
[361604748,1747633857530,-540.816,0.00013808,2]
[361604749,1747633858235,-400.0,0.00013698,2]
[361604750,1747633858244,-1229.41,0.00013698,2]
[361604751,1747633858253,-312.09046085,0.00013808,2]
[361604752,1747633858262,-9.61079373,0.00013808,2]
[361604753,1747633858273,-560.24920627,0.00013808,2]
[361604754,1747633858282,-827.96,0.00013808,2]
[361604755,1747633858291,-400.0,0.00013808,2]
[361604756,1747633858301,-470.07854609,0.00013808,2]
[361604757,1747633858310,-250.88147972,0.00013808,2]
[361604758,1747633858321,-613.87852028,0.00013808,2]
[361604759,1747633858331,-400.0,0.00013808,2]
[361604760,1747633858340,-400.0,0.00013808,2]
[361604761,1747633858349,-950.07681567,0.00013808,2]
[361604762,1747633858373,-205.97318433,0.00013808,2]
[361604763,1747633858382,-400.0,0.00013808,2]
[361604764,1747633858392,-400.0,0.00013808,2]
[361604765,1747633858402,-400.0,0.00013808,2]
[361604766,1747633858411,-273.94644223,0.00013808,2]
[361604767,1747633858426,-126.05355777,0.00013808,2]
[361604768,1747633858435,-684.93,0.00013808,2]
[361604769,1747633858446,-610.36,0.00013808,2]
[361604770,1747633858457,-739.89,0.00013808,2]
[361604771,1747633858466,-741.66,0.00013808,2]
[361604772,1747633858475,-1164.77,0.00013808,2]
[361604773,1747633858484,-7520.39,0.00013808,2]
[361604774,1747633858493,-464.96,0.00013808,2]
[361604775,1747633858502,-400.0,0.00013808,2]
[361604776,1747633858513,-1091.33,0.00013808,2]
[361604777,1747633858523,-400.0,0.00013808,2]
[361604778,1747633858533,-400.0,0.00013808,2]
[361604779,1747633858543,-445.24,0.00013808,2]
[361604780,1747633858553,-430.67,0.00013808,2]
[361604781,1747633858563,-9094.93308952,0.00013808,2]
[361604782,1747633858597,-275.0,0.00013808,2]
[361604783,1747633859242,-50.32691048,0.00013808,2]
[361604784,1747633859252,-579.5530895,0.00013808,2]
[361604785,1747633859263,-201.9569105,0.00013808,2]
[361604786,1747633859273,-400.0,0.00013808,2]
[361604787,1747633859285,-542.89,0.00013808,2]
[361604788,1747633859294,-400.0,0.00013808,2]
[361604789,1747633859303,-400.0,0.00013808,2]
[361604790,1747633859313,-400.0,0.00013808,2]
[361604791,1747633859323,-803.48,0.00013808,2]
[361604792,1747633859334,-400.0,0.00013808,2]
[361604793,1747633859343,-400.0,0.00013808,2]
[361604794,1747633859352,-11624.57,0.00013808,2]
[361604795,1747633859362,-419.87,0.00013808,2]
[361604796,1747633859372,-8950.1665358,0.00013808,2]
[361604797,1747633859389,-2691.19724658,0.00013808,2]
[361604798,1747633859417,312.53128,0.00011163,2]
[361604799,1747633859454,-6539.66621762,0.00013808,2]
[361604800,1747633859464,-400.0,0.00013808,2]
[361604801,1747633859473,-762.45,0.00013808,2]
[361604802,1747633859482,-219.169483,0.00013808,2]
[361604803,1747633859491,-708.04,0.00013808,2]
[361604804,1747633859500,-219.169483,0.00013808,2]
[361604805,1747633859509,-400.0,0.00013808,2]
[361604806,1747633859518,-400.0,0.00013808,2]
[361604807,1747633859528,-2445.1,0.00013808,2]
[361604808,1747633859537,-400.0,0.00013808,2]
[361604809,1747633859546,-219.169483,0.00013808,2]
[361604810,1747633859555,-219.169483,0.00013808,2]
[361604811,1747633859564,-400.0,0.00013808,2]
[361604812,1747633859573,-225.73214132,0.00013808,2]
[361604813,1747633859583,-1632.05,0.00013808,2]
[361604814,1747633859593,-442.21,0.00013808,2]
[361604815,1747633859603,-1014.21,0.00013808,2]
[361604816,1747633859613,-1300.14,0.00013808,2]
[361604817,1747633859622,-625.76,0.00013808,2]
[361604818,1747633859631,-400.0,0.00013808,2]
[361604819,1747633859642,-4304.47,0.00013808,2]
[361604820,1747633859651,-400.0,0.00013808,2]
[361604821,1747633859660,-419.55705749,0.00013808,2]
[361604822,1747633859669,-1627.05,0.00013808,2]
[361604823,1747633859679,-5170.49820607,0.00013808,2]
[361604824,1747633859762,-1656.90474624,0.00013808,2]
[361604825,1747633892277,865.2306,0.00011858,2]
[361604826,1747633950825,978.0,0.00027397,120]
[361604827,1747633993633,165.19,0.00011211,2]
[361604828,1747634469303,1000.0,0.00027,120]
[361604829,1747634502846,1000.0,0.00025,60]
[361604830,1747634506762,-160.60790816,0.00012459,2]
[361604831,1747634544862,276.41400384,0.00012,13]
[361604832,1747634646817,-204.0,0.00011652,2]
[361604833,1747634646840,-76.53369237,0.00012055,2]
[361604834,1747634648767,-123.46630763,0.00012055,2]
[361604835,1747634648791,-49.68768065,0.00012292,2]
[361604836,1747634650501,-200.0,0.00012292,2]
[361604837,1747634652427,-154.0330413,0.00012292,2]